bitfinex/quotes_SOLUSD_20250912
["timestamp","ask_amount","ask_price","bid_price","bid_amount"]
[1757640710339,13.59559401,232.44,232.35,34.88]
[1757640710539,13.59559401,232.44,232.36,0.72]
[1757640710840,26.0,232.43,232.36,0.72]
[1757640711140,14.30559401,232.42,232.37,34.14]
[1757640711336,14.30559401,232.42,232.38,34.14]
[1757640711517,13.59559401,232.42,232.38,34.14]
[1757640712324,6.06022184,232.46,232.39,0.72]
[1757640712528,26.0,232.45,232.39,0.72]
[1757640713126,26.0,232.45,232.38,34.14]
[1757640713526,26.0,232.45,232.36,0.72]
[1757640713721,13.59559401,232.4,232.37,34.14]
[1757640714942,13.59559401,232.4,232.38,34.16]
[1757640715837,0.68,232.47,232.39,0.69]
[1757640716039,19.65581585,232.46,232.39,0.69]
[1757640716240,13.59559401,232.45,232.39,0.69]
[1757640717840,13.59559401,232.45,232.4,34.14]
[1757640718039,13.59559401,232.45,232.4,34.83]
[1757640718532,14.27559401,232.45,232.32,0.86086381]
[1757640718730,13.59559401,232.45,232.33,34.81]
[1757640719050,13.59559401,232.45,232.34,0.69]
[1757640720241,0.03,232.46,232.34,0.69]
[1757640720547,0.03,232.46,232.37,3.01243705]
[1757640720749,0.03,232.46,232.39,26.0]
[1757640721126,0.03,232.46,232.4,0.69]
[1757640721330,0.03,232.46,232.41,34.12]
[1757640721527,0.03,232.46,232.42,34.12]
[1757640721932,0.03,232.46,232.43,0.69]
[1757640722555,0.03,232.46,232.44,0.8604371]
[1757640723058,0.03,232.46,232.45,26.69]
[1757640723761,0.03,232.46,232.45,34.83]
[1757640725157,0.03,232.46,232.45,60.83]
[1757640725832,0.03,232.46,232.45,26.69]
[1757640726034,0.03,232.46,232.45,34.81]
[1757640726241,0.03,232.46,232.45,0.69]
[1757640726456,0.03,232.46,232.45,34.81]
[1757640726763,0.03,232.46,232.45,132.79]
[1757640727264,0.03,232.46,232.45,166.91]
[1757640728534,0.03,232.46,232.45,34.81]
[1757640728737,0.03,232.46,232.44,0.86042678]
[1757640728931,0.03,232.46,232.42,1.55048689]
[1757640729263,0.03,232.46,232.43,34.81]
[1757640729755,0.03,232.46,232.44,0.69]
[1757640729936,0.03,232.49,232.46,26.0]
[1757640730132,0.03,232.51,232.5,26.0]
[1757640730337,0.03,232.56,232.5,26.0]
[1757640730338,0.03,232.56,232.51,26.0]
[1757640730558,0.03,232.56,232.52,34.16]
[1757640730740,0.03,232.56,232.52,34.85]
[1757640730946,0.03,232.56,232.52,35.71014106]
[1757640731638,0.03,232.56,232.52,1.55014106]
[1757640731940,0.03,232.56,232.52,36.12021159]
[1757640732136,0.03,232.56,232.52,49.7158056]
[1757640733139,0.03,232.56,232.52,15.5758056]
[1757640733362,0.03,232.56,232.52,1.55014106]
[1757640733564,0.03,232.56,232.52,34.81]
[1757640734340,0.03,232.56,232.52,0.69]
[1757640734561,0.03,232.56,232.52,34.83]
[1757640735553,0.03,232.56,232.51,0.86015835]
[1757640735941,0.03,232.56,232.5,26.0]
[1757640736161,0.03,232.56,232.51,34.12]
[1757640737247,0.03,232.56,232.51,0.86015239]
[1757640737448,0.03,232.56,232.48,1.71943173]
[1757640737449,0.68,232.52,232.45,0.86037265]
[1757640737758,0.68,232.51,232.45,0.86037265]
[1757640738163,6.03022184,232.55,232.41,0.81]
[1757640738164,0.68,232.5,232.41,0.81]
[1757640738362,0.68,232.5,232.45,34.12]
[1757640738674,0.68,232.5,232.46,34.12]
[1757640739054,0.68,232.49,232.46,34.12]
[1757640739253,6.06022184,232.53,232.46,34.12]
[1757640739571,6.06022184,232.53,232.41,0.9805191]
[1757640739572,0.68,232.48,232.41,0.9805191]
[1757640739875,0.68,232.47,232.42,34.12]
[1757640740063,0.68,232.46,232.42,34.12]
[1757640740254,0.68,232.51,232.43,0.69]
[1757640740770,0.03,232.53,232.43,0.69]
[1757640741268,6.71022184,232.52,232.44,34.12]
[1757640741447,6.03022184,232.5,232.41,0.12]
[1757640741649,6.03022184,232.48,232.42,34.14]
[1757640741866,3.85061367,232.47,232.43,34.26]
[1757640742067,0.68,232.46,232.44,34.14]
[1757640742279,3.85009863,232.45,232.44,34.14]
[1757640742852,3.85653311,232.45,232.44,34.14]
[1757640743049,13.59559401,232.44,232.43,0.12]
[1757640743372,3.85653311,232.44,232.43,34.28]
[1757640743572,17.45212712,232.44,232.43,0.12]
[1757640743775,3.17653311,232.44,232.43,34.38]
[1757640743964,0.68,232.44,232.43,0.12]
[1757640744164,17.45397417,232.44,232.41,0.12]
[1757640744362,22.80419601,232.43,232.41,0.12]
[1757640744551,3.17838016,232.42,232.41,0.12]
[1757640745775,3.17838016,232.42,232.41,34.48]
[1757640747256,3.86838016,232.42,232.41,34.48]
[1757640748174,23.49419601,232.42,232.41,0.12]
[1757640749183,17.46397417,232.42,232.41,0.12]
[1757640749363,23.49419601,232.42,232.41,0.12]
[1757640752156,17.46397417,232.42,232.41,0.12]
[1757640752460,23.49419601,232.42,232.41,0.12]
[1757640752660,43.46397417,232.42,232.41,0.12]
[1757640752978,17.46397417,232.42,232.41,0.12]
[1757640753860,3.17838016,232.42,232.41,0.12]
[1757640754099,3.18827582,232.44,232.41,0.12]
[1757640754278,3.18827582,232.43,232.41,0.12]
[1757640754480,13.59559401,232.45,232.41,0.12]
[1757640754684,3.18827582,232.44,232.41,0.12]
[1757640755076,3.18808357,232.44,232.41,0.12]
[1757640755761,3.87808357,232.44,232.41,0.12]
[1757640755961,0.69,232.43,232.41,0.12]
[1757640756465,0.69,232.42,232.41,0.12]
[1757640756764,14.28559401,232.42,232.41,0.12]
[1757640756978,23.50432755,232.42,232.41,0.12]
[1757640757986,27.80688326,232.42,232.41,0.12]
[1757640758184,13.59559401,232.41,232.4,0.12]
[1757640758385,51.65603769,232.39,232.38,0.12]
[1757640758573,54.84454939,232.39,232.38,0.12]
[1757640758776,49.50432755,232.39,232.38,0.12]
[1757640759273,55.53454939,232.39,232.38,0.12]
[1757640759864,53.80743869,232.39,232.38,0.12]
[1757640760688,49.50432755,232.39,232.38,0.12]
[1757640760984,46.31581585,232.39,232.38,0.12]
[1757640762083,20.31581585,232.39,232.38,0.12]
[1757640763887,13.59559401,232.39,232.38,0.12]
[1757640764063,46.31581585,232.39,232.38,0.12]
[1757640764264,20.31581585,232.39,232.38,0.12]
[1757640764477,23.3601986,232.39,232.38,0.12]
[1757640764874,22.6701986,232.39,232.38,0.12]
[1757640765079,23.3601986,232.39,232.38,0.12]
[1757640765492,22.6701986,232.39,232.38,0.12]
[1757640765689,13.59559401,232.39,232.38,0.12]
[1757640765999,9.07460459,232.42,232.38,0.12]
[1757640766175,13.59559401,232.39,232.38,0.12]
[1757640766794,14.28559401,232.39,232.38,0.12]
[1757640767891,14.28559401,232.39,232.17,4.42714538]
[1757640767892,13.59559401,232.32,232.19,1.06]
[1757640768099,26.0,232.33,232.19,1.06]
[1757640768100,13.59559401,232.33,232.28,0.71]
[1757640768298,13.59559401,232.33,232.29,0.71]
[1757640768467,9.07460459,232.38,232.3,34.58]
[1757640768670,9.07460459,232.38,232.31,0.71]
[1757640768671,13.59559401,232.37,232.31,0.71]
[1757640770590,35.07460459,232.39,232.27,0.71]
[1757640770591,13.59559401,232.34,232.27,0.71]
[1757640770793,13.59559401,232.32,232.27,0.71]
[1757640770998,22.6701986,232.32,232.27,132.81]
[1757640771379,9.07460459,232.34,232.28,0.71]
[1757640772091,13.59559401,232.35,232.28,35.33]
[1757640772388,13.59559401,232.32,232.28,34.62]
[1757640772591,9.07460459,232.33,232.19,26.0]
[1757640772592,13.59559401,232.28,232.19,0.71]
[1757640772778,13.59559401,232.26,232.19,0.71]
[1757640772977,9.07460459,232.23,232.19,0.71]
[1757640773183,13.59559401,232.31,232.19,0.71]
[1757640773394,13.59559401,232.29,232.19,132.81]
[1757640773695,13.59559401,232.29,232.2,0.71]
[1757640773874,9.07460459,232.3,232.2,1.57130136]
[1757640774194,35.07460459,232.32,232.21,0.71]
[1757640774375,9.07460459,232.34,232.21,0.71]
[1757640774574,0.69,232.37,232.21,132.81]
[1757640774575,39.59559401,232.33,232.21,132.81]
[1757640774780,39.59559401,232.33,232.22,0.71]
[1757640775079,13.59559401,232.33,232.23,34.7]
[1757640775278,13.59559401,232.33,232.24,0.71]
[1757640775483,13.59559401,232.33,232.31,0.12]
[1757640775680,13.59559401,232.33,232.31,34.82]
[1757640776097,13.59559401,232.36,232.31,34.82]
[1757640776304,13.59559401,232.35,232.31,34.82]
[1757640776682,13.59559401,232.35,232.31,0.12]
[1757640776887,13.59559401,232.35,232.32,34.68]
[1757640777195,13.59559401,232.35,232.33,34.68]
[1757640777387,35.07460459,232.38,232.33,34.68]
[1757640777709,0.03,232.39,232.34,0.71]
[1757640778181,0.03,232.39,232.33,34.68]
[1757640778499,0.03,232.39,232.35,0.71]
[1757640779895,0.03,232.39,232.36,34.64]
[1757640780296,0.03,232.39,232.36,35.35]
[1757640780799,0.03,232.39,232.37,34.64]
[1757640781186,3.18553737,232.38,232.37,34.64]
[1757640781387,13.59559401,232.37,232.31,0.12]
[1757640781609,3.18553737,232.36,232.32,14.72]
[1757640781903,3.18553737,232.36,232.31,0.12]
[1757640782111,3.18553737,232.36,232.33,34.62]
[1757640782410,3.18553737,232.35,232.33,34.62]
[1757640782700,3.18553737,232.34,232.31,0.83]
[1757640782897,3.18553737,232.36,232.33,34.6]
[1757640783098,3.18553737,232.35,232.33,34.6]
[1757640783278,3.18553737,232.34,232.33,34.6]
[1757640783478,3.18553737,232.34,232.33,35.31]
[1757640783683,3.18553737,232.34,232.33,34.6]
[1757640784082,3.18553737,232.34,232.31,0.12]
[1757640784284,3.89553737,232.33,232.31,34.7]
[1757640784489,3.18553737,232.32,232.31,34.7]
[1757640785319,3.18553737,232.32,232.31,35.41]
[1757640786096,3.18553737,232.32,232.31,34.7]
[1757640787012,3.18553737,232.32,232.31,0.12]
[1757640787400,47.79553909,232.32,232.31,0.12]
[1757640787710,43.49113138,232.32,232.31,0.12]
[1757640787894,3.18553737,232.32,232.31,0.83]
[1757640793116,13.59559401,232.37,232.31,35.35]
[1757640793320,3.20968512,232.36,232.32,0.71]
[1757640793500,3.20968512,232.35,232.33,0.71]
[1757640793694,3.20968512,232.34,232.33,0.71]
[1757640794125,0.03,232.36,232.33,0.71]
[1757640794318,0.03,232.36,232.34,0.71]
[1757640794696,0.03,232.36,232.35,0.71]
[1757640795616,0.03,232.36,232.35,1.57077038]
[1757640796608,0.03,232.36,232.35,0.71]
[1757640797408,0.03,232.36,232.35,1.57077038]
[1757640797821,0.03,232.36,232.35,0.71]
[1757640798419,0.03,232.36,232.35,36.07077038]
[1757640799908,0.03,232.36,232.35,1.57077038]
[1757640800130,0.03,232.36,232.35,36.05077038]
[1757640802511,0.03,232.36,232.35,62.01077038]
[1757640802917,0.03,232.36,232.35,0.71]
[1757640803125,0.03,232.36,232.35,26.71]
[1757640803310,0.03,232.36,232.32,0.71]
[1757640803618,0.03,232.36,232.33,32.3]
[1757640805410,0.7,232.35,232.31,0.12]
[1757640805605,3.90600669,232.35,232.32,34.46]
[1757640805806,0.7,232.34,232.32,34.46]
[1757640806007,0.7,232.33,232.32,34.46]
[1757640806528,3.20600669,232.35,232.32,34.46]
[1757640806704,0.7,232.33,232.31,0.12]
[1757640806895,0.7,232.33,232.32,34.44]
[1757640807515,13.59559401,232.32,232.31,0.12]
[1757640807704,14.29559401,232.32,232.31,0.12]
[1757640809930,13.59559401,232.35,232.31,0.12]
[1757640810102,3.20019027,232.34,232.31,0.12]
[1757640810716,13.59559401,232.32,232.31,0.12]
[1757640810922,13.59559401,232.32,232.31,34.52]
[1757640811121,43.49534688,232.32,232.31,0.12]
[1757640811715,39.59559401,232.29,232.28,0.12]
[1757640812031,51.86995147,232.29,232.28,0.12]
[1757640812211,52.56995147,232.29,232.28,0.12]
[1757640812411,65.59591679,232.29,232.28,0.12]
[1757640812814,69.90088041,232.29,232.28,0.12]
[1757640814832,13.59559401,232.28,232.26,0.12]
[1757640815024,16.79534688,232.27,232.26,0.12]
[1757640815206,26.56995147,232.27,232.26,0.12]
[1757640815408,14.29559401,232.27,232.26,0.12]
[1757640815624,23.3701986,232.27,232.26,0.12]
[1757640816135,14.29559401,232.27,232.26,0.12]
[1757640816309,23.3701986,232.27,232.26,0.12]
[1757640816821,27.6755329,232.27,232.26,0.12]
[1757640817233,30.86727594,232.27,232.26,0.12]
[1757640817835,17.48733705,232.27,232.26,0.12]
[1757640818025,23.3701986,232.27,232.26,0.12]
[1757640818635,22.6701986,232.27,232.26,0.12]
[1757640818818,13.59559401,232.27,232.26,0.12]
[1757640819178,22.6701986,232.27,232.26,0.12]
[1757640819321,23.3701986,232.27,232.26,0.12]
[1757640819847,26.0,232.24,232.19,20.7]
[1757640820143,9.07460459,232.21,232.19,20.7]
[1757640821145,13.59559401,232.22,232.19,20.7]
[1757640821816,13.59559401,232.22,232.19,21.36]
[1757640822935,13.59559401,232.22,232.19,20.7]
[1757640823136,13.59559401,232.19,232.17,0.12]
[1757640823355,22.6701986,232.18,232.17,0.12]
[1757640823655,23.3701986,232.18,232.17,0.12]
[1757640824240,14.29559401,232.18,232.17,0.12]
[1757640824552,19.33908273,232.18,232.17,0.12]
[1757640825253,23.64608591,232.18,232.17,0.12]
[1757640826139,18.60259719,232.18,232.17,0.12]
[1757640826341,23.64608591,232.18,232.17,0.12]
[1757640826955,18.60259719,232.18,232.17,0.12]
[1757640827163,23.64608591,232.18,232.17,0.12]
[1757640829865,22.94608591,232.18,232.17,0.12]
[1757640830250,23.64608591,232.18,232.17,0.12]
[1757640832345,19.89634196,232.18,232.17,0.12]
[1757640833251,20.59634196,232.18,232.17,0.12]
[1757640833869,18.60259719,232.18,232.17,0.12]
[1757640834078,20.59634196,232.18,232.17,0.12]
[1757640835050,39.59559401,232.15,232.14,0.12]
[1757640835366,41.58933878,232.15,232.14,0.12]
[1757640835864,39.59559401,232.15,232.14,0.82]
[1757640836055,26.0,232.21,232.14,0.82]
[1757640836258,13.59559401,232.17,232.14,0.82]
[1757640836460,13.59559401,232.15,232.14,0.12]
[1757640836647,13.59559401,232.15,232.12,0.12]
[1757640836841,34.42,232.2,232.12,0.12]
[1757640836842,15.58933878,232.13,232.12,0.12]
[1757640837061,19.89726968,232.13,232.12,0.12]
[1757640837256,45.89726968,232.13,232.12,0.12]
[1757640837458,46.56726968,232.13,232.12,0.12]
[1757640837663,20.56726968,232.13,232.12,0.12]
[1757640837840,17.90352491,232.13,232.12,0.12]
[1757640838045,15.58933878,232.13,232.12,0.12]
[1757640838241,15.58933878,232.13,232.12,0.82]
[1757640838655,13.59559401,232.13,232.12,0.82]
[1757640840449,15.58933878,232.13,232.12,0.12]
[1757640842269,13.59559401,232.13,232.12,0.82]
[1757640842472,13.59559401,232.13,232.12,0.12]
[1757640843049,13.59559401,232.13,232.12,0.82]
[1757640843574,0.67,232.2,232.12,1.18162002]
[1757640843765,1.99374477,232.16,232.12,0.86162002]
[1757640844078,27.99374477,232.16,232.12,0.86162002]
[1757640844452,26.0,232.16,232.12,0.86162002]
[1757640844762,26.0,232.16,232.08,3.01614956]
[1757640845250,4.30608457,232.23,232.08,3.01614956]
[1757640845451,13.59559401,232.21,232.08,3.01614956]
[1757640845663,13.59559401,232.17,232.09,0.7]
[1757640845978,1.99374477,232.13,232.08,132.1]
[1757640846200,1.99374477,232.11,232.06,167.18]
[1757640846354,1.99374477,232.11,232.07,0.7]
[1757640846681,26.0,232.14,232.08,1.56176141]
[1757640846885,1.99374477,232.13,232.08,1.56176141]
[1757640847064,1.99374477,232.13,232.09,0.7]
[1757640847259,1.99374477,232.13,232.1,0.7]
[1757640847858,1.99374477,232.13,232.11,0.7]
[1757640848055,1.99374477,232.16,232.08,0.12]
[1757640848263,13.59559401,232.15,232.12,0.7]
[1757640848862,13.59559401,232.15,232.1,0.7]
[1757640849156,1.99374477,232.14,232.11,0.7]
[1757640849358,26.0,232.13,232.08,0.12]
[1757640849585,1.99374477,232.12,232.09,35.08]
[1757640849885,27.99374477,232.13,232.09,35.08]
[1757640850053,27.99374477,232.13,232.1,0.7]
[1757640850255,27.99374477,232.13,232.09,34.38]
[1757640850680,26.0,232.13,232.1,0.7]
[1757640851474,26.0,232.13,232.09,34.38]
[1757640851698,26.0,232.13,232.1,0.7]
[1757640852883,13.59559401,232.14,232.09,34.38]
[1757640853092,3.18998361,232.13,232.08,0.82]
[1757640853300,16.25933878,232.14,232.09,34.32]
[1757640853301,3.19101393,232.12,232.09,34.32]
[1757640853504,3.19031556,232.11,232.1,34.32]
[1757640853656,3.19053779,232.12,232.1,34.32]
[1757640853860,1.99374477,232.13,232.1,34.32]
[1757640854220,3.1912602,232.12,232.08,0.12]
[1757640854496,1.99374477,232.09,232.08,34.42]
[1757640854664,5.85500497,232.09,232.08,34.42]
[1757640854870,3.1912602,232.09,232.08,34.42]
[1757640855664,3.19531624,232.1,232.08,35.9817718]
[1757640855873,15.58933878,232.16,232.09,0.7]
[1757640856084,3.19600013,232.15,232.09,0.7]
[1757640856271,3.19600013,232.14,232.09,0.7]
[1757640856475,3.19600013,232.13,232.1,0.7]
[1757640856798,3.19600013,232.12,232.1,0.7]
[1757640857095,16.25933878,232.16,232.1,0.7]
[1757640857297,13.59559401,232.14,232.08,34.42]
[1757640857496,3.2010442,232.13,232.09,34.32]
[1757640857661,3.2010442,232.12,232.09,34.32]
[1757640857861,16.25933878,232.16,232.09,35.02]
[1757640858083,13.59559401,232.14,232.09,35.02]
[1757640858287,3.20134666,232.13,232.09,34.32]
[1757640858587,3.20134666,232.12,232.09,34.32]
[1757640858778,13.59559401,232.1,232.08,0.12]
[1757640858984,16.79856687,232.09,232.08,0.12]
[1757640859179,17.46856687,232.09,232.08,0.12]
[1757640859690,19.46231164,232.09,232.08,0.12]
[1757640860685,18.79231164,232.09,232.08,0.12]
[1757640860996,19.46231164,232.09,232.08,0.12]
[1757640861602,18.79231164,232.09,232.08,0.12]
[1757640861791,16.79856687,232.09,232.08,0.12]
[1757640861991,18.79231164,232.09,232.08,0.12]
[1757640862203,3.20297286,232.09,232.08,0.12]
[1757640862407,16.79856687,232.1,232.08,0.12]
[1757640862613,3.20297286,232.09,232.08,0.12]
[1757640863201,3.87297286,232.09,232.08,0.12]
[1757640863518,3.20297286,232.09,232.08,0.12]
[1757640863918,5.19671763,232.09,232.08,0.12]
[1757640864123,5.86671763,232.09,232.08,0.12]
[1757640864304,10.17539098,232.09,232.08,0.12]
[1757640864495,3.87297286,232.09,232.08,0.12]
[1757640864797,10.17539098,232.09,232.08,0.12]
[1757640865593,13.59559401,232.05,232.02,34.28]
[1757640866087,16.25933878,232.05,232.02,34.28]
[1757640866492,15.58933878,232.05,232.02,34.28]
[1757640866733,13.59559401,232.05,232.02,34.28]
[1757640866904,15.58933878,232.05,232.02,34.28]
[1757640867794,15.58933878,232.05,232.03,0.12]
[1757640868307,19.4594379,232.04,232.03,0.12]
[1757640868491,16.79569313,232.04,232.03,0.12]
[1757640868915,13.59559401,232.04,232.03,0.12]
[1757640869118,15.58933878,232.04,232.03,0.12]
[1757640870217,13.59559401,232.04,232.03,0.12]
[1757640870593,18.5751958,232.04,232.03,0.12]
[1757640870800,21.76242593,232.04,232.03,0.12]
[1757640871297,18.5751958,232.04,232.03,0.12]
[1757640871497,14.26559401,232.04,232.03,0.12]
[1757640872135,13.59559401,232.04,232.03,0.12]
[1757640874123,14.26559401,232.04,232.03,0.12]
[1757640875039,16.25933878,232.04,232.03,0.12]
[1757640875236,17.45257858,232.04,232.03,0.12]
[1757640875540,21.76218037,232.04,232.03,0.12]
[1757640875702,23.75592514,232.04,232.03,0.12]
[1757640876244,21.76218037,232.04,232.03,0.12]
[1757640876540,23.75592514,232.04,232.03,0.12]
[1757640877211,21.76218037,232.04,232.03,0.12]
[1757640877414,23.75592514,232.04,232.03,0.12]
[1757640878004,23.75592514,232.04,231.84,26.0]
[1757640878207,39.59559401,232.0,231.87,0.72]
[1757640878512,23.85708917,232.03,231.88,0.72]
[1757640878513,13.59559401,231.91,231.88,0.72]
[1757640878906,15.58933878,231.91,231.88,0.72]
[1757640879102,15.58933878,231.91,231.86,1.5]
[1757640879304,15.58933878,231.91,231.87,0.72]
[1757640879547,15.58933878,231.91,231.88,0.72]
[1757640879839,15.58933878,231.91,231.86,1.5]
[1757640880127,1.99374477,231.87,231.83,0.72]
[1757640880330,1.99374477,231.87,231.84,0.72]
[1757640880537,1.99374477,231.87,231.74,3.02062656]
[1757640880538,13.59559401,231.86,231.82,35.04]
[1757640880721,13.59559401,231.86,231.83,0.72]
[1757640881111,13.59559401,231.87,231.83,0.72]
[1757640881429,1.99374477,231.86,231.83,0.72]
[1757640881810,15.58933878,231.87,231.83,0.72]
[1757640882010,13.21660376,231.91,231.84,0.72]
[1757640882250,26.0,231.88,231.84,0.72]
[1757640882438,13.59559401,231.91,231.84,0.72]
[1757640883023,15.58933878,231.91,231.84,0.72]
[1757640883228,13.59559401,231.91,231.84,0.72]
[1757640883437,15.58933878,231.9,231.84,0.72]
[1757640884318,3.12146446,231.9,231.84,0.72]
[1757640884515,16.71705847,231.9,231.84,0.72]
[1757640884937,3.12146446,231.88,231.84,0.72]
[1757640885139,3.12146446,231.89,231.84,0.72]
[1757640885639,39.59559401,231.9,231.85,0.72]
[1757640885936,39.59559401,231.9,231.86,0.72]
[1757640887557,3.12146446,231.95,231.87,0.72]
[1757640887856,16.71705847,231.93,231.87,0.72]
[1757640888022,13.59559401,231.93,231.87,0.72]
[1757640888222,13.59559401,231.9,231.85,0.72]
[1757640888627,3.79146446,231.89,231.83,34.3]
[1757640889032,0.67,231.89,231.83,34.3]
[1757640889330,16.71705847,231.88,231.83,34.3]
[1757640889536,26.0,231.85,231.79,35.02]
[1757640889753,26.0,231.85,231.8,0.72]
[1757640890050,13.59559401,231.89,231.8,0.72]
[1757640890254,17.38705847,231.89,231.8,0.72]
[1757640890624,13.59559401,231.89,231.8,0.72]
[1757640890942,16.71705847,231.89,231.8,0.72]
[1757640891143,13.59559401,231.89,231.8,0.72]
[1757640891349,16.71705847,231.89,231.8,0.72]
[1757640891932,16.71705847,231.89,231.8,1.5828109]
[1757640892162,3.12146446,231.89,231.81,0.72]
[1757640892327,3.12146446,231.92,231.81,0.72]
[1757640892525,13.59559401,231.94,231.82,26.0]
[1757640892721,13.59559401,231.94,231.83,35.04]
[1757640892951,13.59559401,231.94,231.84,0.72]
[1757640893256,12.67810233,231.95,231.84,0.72]
[1757640893454,13.59559401,231.96,231.84,0.72]
[1757640893864,13.59559401,231.97,231.84,0.72]
[1757640894027,13.59559401,231.97,231.85,0.86262669]
[1757640894229,13.59559401,231.97,231.86,0.72]
[1757640894859,0.7,232.01,231.86,26.72]
[1757640895152,39.59559401,232.0,231.87,0.7]
[1757640895351,40.29559401,232.0,231.87,0.7]
[1757640896041,40.29559401,232.0,231.88,0.86251509]
[1757640896348,13.59559401,231.96,231.89,0.7]
[1757640896524,3.12146446,231.97,231.9,34.3]
[1757640896525,3.12146446,231.95,231.9,34.3]
[1757640896722,0.7,231.94,231.91,34.3]
[1757640896929,3.82146446,231.93,231.9,34.32]
[1757640897127,0.7,231.92,231.9,34.32]
[1757640897341,3.82146446,231.92,231.89,34.3]
[1757640898149,13.59559401,231.94,231.89,34.3]
[1757640898450,16.71705847,231.97,231.9,0.7]
[1757640898656,13.59559401,231.97,231.9,0.7]
[1757640899731,26.0,231.9,231.74,0.7]
[1757640900053,26.0,231.85,231.75,0.7]
[1757640900661,14.29559401,231.84,231.75,0.7]
[1757640900965,13.59559401,231.8,231.75,35.56]
[1757640901151,13.59559401,231.78,231.7,0.7]
[1757640901330,3.12146446,231.77,231.71,26.9]
[1757640901533,3.12146446,231.76,231.71,26.9]
[1757640901794,0.7,231.79,231.72,1.56311065]
[1757640902071,0.7,231.79,231.72,0.7]
[1757640902360,3.12146446,231.78,231.72,0.7]
[1757640902947,0.7,231.79,231.72,0.7]
[1757640903150,3.82146446,231.79,231.72,0.7]
[1757640903633,3.12146446,231.77,231.71,26.9]
[1757640903956,0.7,231.76,231.71,26.9]
[1757640904153,26.0,231.74,231.71,26.9]
[1757640904339,26.7,231.74,231.71,26.9]
[1757640904538,26.7,231.74,231.65,0.86336121]
[1757640904539,13.59559401,231.71,231.62,0.7]
[1757640904742,3.12146446,231.66,231.61,0.06999707]
[1757640904938,13.59559401,231.7,231.61,0.76999707]
[1757640904939,13.59559401,231.68,231.61,0.76999707]
[1757640905139,13.59559401,231.71,231.62,0.7]
[1757640905562,13.59559401,231.73,231.62,0.7]
[1757640905763,13.59559401,231.73,231.63,0.86344601]
[1757640905954,13.59559401,231.73,231.64,0.7]
[1757640906151,0.7,231.83,231.64,26.7]
[1757640906352,0.7,231.86,231.72,26.0]
[1757640906554,0.7,231.86,231.73,36.54]
[1757640906775,3.12146446,231.83,231.74,35.86]
[1757640906979,0.7,231.82,231.74,35.86]
[1757640907179,0.7,231.89,231.75,0.7]
[1757640907383,2.24948035,231.96,231.77,26.0]
[1757640907384,3.12146446,231.93,231.77,26.0]
[1757640907584,3.82146446,231.91,231.78,0.7]
[1757640907752,3.82146446,231.91,231.8,0.86281276]
[1757640907953,13.59559401,231.9,231.8,1.56281276]
[1757640908155,29.82146446,231.91,231.8,1.56281276]
[1757640908465,26.7,231.91,231.81,0.7]
[1757640908670,0.7,231.91,231.81,0.7]
[1757640908868,0.7,231.94,231.81,0.7]
[1757640909063,7.91141617,231.94,231.81,0.7]
[1757640909370,13.59559401,231.92,231.72,20.0]